bitfinex/quotes_SOLUSD_20251201
["timestamp","ask_amount","ask_price","bid_price","bid_amount"]
[1764548193784,8.18441411,131.17,131.14,1.27999999]
[1764548194018,16.308864,131.12,131.07,1.27999999]
[1764548194279,3.78,131.13,131.1,1.27999999]
[1764548194471,4.5,131.13,131.08,1.27999999]
[1764548194783,4.5,131.13,131.1,1.27999999]
[1764548195168,8.18441411,131.11,131.1,1.27999999]
[1764548195487,3.78,131.13,131.11,1.27999999]
[1764548195783,0.72,131.23,131.15,1.27999999]
[1764548195784,8.34174915,131.21,131.15,1.27999999]
[1764548195987,8.18441411,131.16,131.14,8.90528669]
[1764548196282,3.78,131.2,131.18,1.27999999]
[1764548196499,0.72,131.27,131.19,1.27999999]
[1764548196672,4.5,131.26,131.2,1.27999999]
[1764548196861,4.5,131.26,131.21,1.27999999]
[1764548197063,0.72,131.25,131.18,1.27999999]
[1764548197361,17.028864,131.25,131.18,1.27999999]
[1764548197565,8.18441411,131.19,131.17,1.27999999]
[1764548197760,8.80994492,131.24,131.14,1.27999999]
[1764548197761,3.78,131.2,131.14,1.27999999]
[1764548197970,7.6225322,131.19,131.11,1.27999999]
[1764548198176,0.72,131.19,131.14,1.27999999]
[1764548198383,16.308864,131.17,131.09,1.27999999]
[1764548198774,8.18441411,131.11,131.09,1.27999999]
[1764548199091,8.18441411,131.11,131.06,8.85441411]
[1764548199092,8.18441411,131.11,131.1,1.27999999]
[1764548199589,16.308864,131.17,131.11,1.27999999]
[1764548199883,12.12272093,131.19,131.14,1.27999999]
[1764548200057,4.5,131.19,131.14,1.27999999]
[1764548200262,3.78,131.19,131.15,1.27999999]
[1764548201087,8.18441411,131.16,131.15,1.27999999]
[1764548201687,4.5,131.19,131.15,1.27999999]
[1764548201688,3.78,131.19,131.15,1.27999999]
[1764548201984,8.18441411,131.16,131.15,1.27999999]
[1764548202883,8.18441411,131.16,131.14,1.27999999]
[1764548203188,8.18441411,131.15,131.14,1.27999999]
[1764548203782,3.78,131.19,131.15,1.27999999]
[1764548203992,8.18441411,131.18,131.17,1.27999999]
[1764548204164,0.72,131.22,131.2,1.27999999]
[1764548204165,8.18441411,131.22,131.2,1.27999999]
[1764548204368,0.72,131.26,131.22,1.27999999]
[1764548204592,8.18441411,131.23,131.22,1.27999999]
[1764548204891,8.18441411,131.23,131.21,1.27999999]
[1764548205098,8.18441411,131.22,131.21,1.27999999]
[1764548205284,8.18441411,131.22,131.2,1.27999999]
[1764548205894,8.18441411,131.22,131.21,1.27999999]
[1764548206480,0.72,131.25,131.21,1.27999999]
[1764548206481,8.18441411,131.23,131.21,1.27999999]
[1764548206695,8.18441411,131.22,131.21,1.27999999]
[1764548207065,8.18441411,131.22,131.2,8.90161163]
[1764548207289,8.18441411,131.22,131.21,1.27999999]
[1764548207495,16.308864,131.26,131.22,1.27999999]
[1764548207791,8.18441411,131.24,131.22,8.9007895]
[1764548207995,16.308864,131.26,131.22,8.9007895]
[1764548207996,8.18441411,131.23,131.22,1.27999999]
[1764548208195,0.72,131.31,131.25,1.27999999]
[1764548208402,0.72,131.31,131.26,1.27999999]
[1764548208573,8.18441411,131.27,131.26,1.27999999]
[1764548208900,16.308864,131.32,131.26,1.94999999]
[1764548209103,3.78,131.33,131.3,1.27999999]
[1764548209398,0.72,131.32,131.29,1.27999999]
[1764548209603,8.33514843,131.32,131.26,1.27999999]
[1764548209899,16.308864,131.3,131.26,1.27999999]
[1764548210200,8.18441411,131.27,131.26,1.27999999]
[1764548210976,0.72,131.32,131.26,1.27999999]
[1764548211284,16.308864,131.3,131.26,1.27999999]
[1764548211606,16.308864,131.3,131.24,1.27999999]
[1764548211776,16.308864,131.26,131.22,1.27999999]
[1764548211975,0.72,131.29,131.23,1.27999999]
[1764548212280,16.308864,131.29,131.26,1.27999999]
[1764548212491,8.18441411,131.27,131.26,1.27999999]
[1764548213281,17.028864,131.31,131.26,1.27999999]
[1764548213488,17.028864,131.3,131.27,1.27999999]
[1764548213672,8.18441411,131.28,131.27,1.27999999]
[1764548215006,0.72,131.33,131.27,1.94999999]
[1764548215200,8.18441411,131.3,131.29,1.27999999]
[1764548215411,8.18441411,131.3,131.28,1.27999999]
[1764548215612,4.5,131.33,131.28,1.27999999]
[1764548215613,8.18441411,131.29,131.28,1.27999999]
[1764548215914,8.18441411,131.29,131.2,46.91927378]
[1764548215915,8.18441411,131.29,131.27,1.27999999]
[1764548216097,8.18441411,131.28,131.26,1.27999999]
[1764548216296,8.18441411,131.27,131.26,1.27999999]
[1764548216598,5.35468492,131.27,131.25,1.27999999]
[1764548216791,6.06468492,131.26,131.22,1.27999999]
[1764548216985,0.71,131.26,131.23,1.27999999]
[1764548217193,3.78,131.27,131.23,1.27999999]
[1764548217391,3.78,131.27,131.24,1.27999999]
[1764548217606,16.308864,131.28,131.24,1.27999999]
[1764548217793,20.798864,131.28,131.24,1.27999999]
[1764548218095,5.35468492,131.25,131.24,1.27999999]
[1764548218485,5.35468492,131.28,131.27,1.27999999]
[1764548218709,5.35468492,131.31,131.3,1.27999999]
[1764548218905,19.01,131.4,131.32,1.27999999]
[1764548219211,3.76,131.38,131.33,1.27999999]
[1764548219414,16.308864,131.36,131.32,1.27999999]
[1764548219905,0.71,131.35,131.31,1.27999999]
[1764548220106,0.71,131.35,131.29,1.27999999]
[1764548220312,5.35468492,131.3,131.29,1.27999999]
[1764548220489,5.35468492,131.3,131.27,1.27999999]
[1764548220683,5.35468492,131.28,131.25,8.89863821]
[1764548220884,0.71,131.29,131.26,1.27999999]
[1764548221085,5.35468492,131.27,131.24,1.27999999]
[1764548221296,5.35468492,131.25,131.24,1.27999999]
[1764548221503,5.35468492,131.25,131.23,1.27999999]
[1764548221697,9.82468492,131.24,131.19,8.90213079]
[1764548221888,12.0900173,131.24,131.18,1.27999999]
[1764548222090,16.308864,131.21,131.16,1.27999999]
[1764548222504,0.71,131.2,131.16,1.27999999]
[1764548222897,5.35468492,131.17,131.14,1.27999999]
[1764548223099,26.6690877,131.24,131.15,1.27999999]
[1764548223397,4.47,131.23,131.18,1.27999999]
[1764548223601,16.308864,131.21,131.17,1.27999999]
[1764548223804,0.71,131.22,131.15,1.27999999]
[1764548224117,0.71,131.22,131.13,7.62568074]
[1764548224118,0.71,131.22,131.16,1.27999999]
[1764548224296,3.76,131.21,131.18,1.27999999]
[1764548224500,38.1482722,131.37,131.22,1.27999999]
[1764548224501,4.47,131.27,131.22,1.27999999]
[1764548224804,8.2047487,131.23,131.19,1.27999999]
[1764548225008,8.2047487,131.2,131.19,1.27999999]
[1764548225209,11.9647487,131.2,131.16,1.27999999]
[1764548225393,8.2047487,131.17,131.16,1.27999999]
[1764548225707,0.71,131.19,131.17,1.27999999]
[1764548225906,3.76,131.2,131.16,1.27999999]
[1764548226088,0.71,131.19,131.12,1.27999999]
[1764548226286,0.71,131.19,131.16,1.27999999]
[1764548226693,0.71,131.19,131.12,8.90605607]
[1764548226893,0.71,131.19,131.13,1.27999999]
[1764548226894,8.2047487,131.18,131.13,1.27999999]
[1764548227113,24.5136127,131.18,131.11,1.27999999]
[1764548227293,16.308864,131.15,131.11,1.27999999]
[1764548227500,16.308864,131.13,131.09,1.27999999]
[1764548227695,16.308864,131.13,131.03,1.27999999]
[1764548227696,7.62718328,131.11,131.03,1.27999999]
[1764548227894,7.62718328,131.11,130.99,0.72]
[1764548227895,25.11880892,131.1,131.01,1.27999999]
[1764548228201,8.2047487,131.02,131.01,1.27999999]
[1764548228601,3.76,131.04,131.03,1.27999999]
[1764548228799,0.71,131.03,130.99,1.27999999]
[1764548229020,0.71,131.03,131.0,1.27999999]
[1764548229319,3.76,131.04,131.02,1.27999999]
[1764548229496,3.76,131.04,131.01,1.27999999]
[1764548229688,3.76,131.04,130.98,0.1]
[1764548229689,0.71,131.07,131.02,1.27999999]
[1764548230002,0.71,131.07,130.98,0.82]
[1764548230003,3.76,131.07,131.05,1.27999999]
[1764548230195,8.2047487,131.06,131.05,1.27999999]
[1764548230395,0.71,131.13,131.07,1.27999999]
[1764548230624,4.47,131.13,131.09,1.27999999]
[1764548230835,8.2047487,131.1,131.08,1.27999999]
[1764548230993,8.2047487,131.09,131.04,1.27999999]
[1764548231299,16.308864,131.11,131.06,1.27999999]
[1764548231701,4.47,131.13,131.08,1.27999999]
[1764548231926,0.71,131.19,131.13,1.27999999]
[1764548232094,0.71,131.19,131.08,7.62892252]
[1764548232095,1.43,131.31,131.17,1.27999999]
[1764548232296,1.43,131.31,131.22,1.27999999]
[1764548232297,3.76,131.3,131.22,1.27999999]
[1764548232637,0.72,131.29,131.17,1.27999999]
[1764548232808,0.72,131.28,131.19,1.27999999]
[1764548233129,0.72,131.28,131.09,2.0]
[1764548233130,16.308864,131.25,131.12,1.27999999]
[1764548233299,20.068864,131.24,131.16,1.27999999]
[1764548233497,9.63390437,131.17,131.11,1.27999999]
[1764548233699,9.63390437,131.12,131.11,1.27999999]
[1764548233902,9.63390437,131.12,131.07,1.27999999]
[1764548234094,3.76,131.16,131.11,1.27999999]
[1764548234293,17.018864,131.15,131.11,1.27999999]
[1764548234518,9.63390437,131.12,131.11,1.27999999]
[1764548235118,0.71,131.2,131.16,1.27999999]
[1764548235497,0.71,131.2,131.17,1.27999999]
[1764548235798,0.72,131.27,131.12,0.72]
[1764548235799,9.63390437,131.21,131.2,1.27999999]
[1764548236121,3.76,131.28,131.26,1.27999999]
[1764548236325,0.71,131.32,131.28,1.27999999]
[1764548236502,3.76,131.33,131.29,1.27999999]
[1764548236700,11.37448756,131.33,131.24,1.27999999]
[1764548236906,0.71,131.32,131.23,1.27999999]
[1764548237106,9.63390437,131.24,131.23,1.27999999]
[1764548237310,9.63390437,131.24,131.21,1.27999999]
[1764548237623,9.63390437,131.22,131.21,1.27999999]
[1764548237931,4.47,131.26,131.21,1.27999999]
[1764548238128,0.71,131.35,131.28,1.27999999]
[1764548238423,9.63390437,131.29,131.28,1.27999999]
[1764548238926,10.34390437,131.29,131.25,1.27999999]
[1764548239220,0.71,131.33,131.25,1.27999999]
[1764548239433,9.63390437,131.26,131.25,1.27999999]
[1764548240217,17.018864,131.3,131.26,1.27999999]
[1764548240603,0.71,131.29,131.26,1.27999999]
[1764548240818,4.47,131.29,131.26,1.27999999]
[1764548241023,4.47,131.29,131.23,1.27999999]
[1764548241223,0.71,131.28,131.22,1.27999999]
[1764548241425,9.63390437,131.23,131.2,8.90188536]
[1764548241630,9.63390437,131.21,131.2,1.27999999]
[1764548241931,23.92777672,131.26,131.22,1.27999999]
[1764548242104,0.71,131.25,131.21,1.27999999]
[1764548242305,23.92777672,131.26,131.22,1.27999999]
[1764548242522,23.92777672,131.26,131.23,1.27999999]
[1764548242719,19.75379979,131.28,131.24,1.27999999]
[1764548242720,0.71,131.28,131.24,1.27999999]
[1764548242923,0.71,131.28,131.25,1.27999999]
[1764548243227,3.76,131.29,131.27,1.27999999]
[1764548243399,8.80994492,131.35,131.29,1.27999999]
[1764548243400,0.71,131.35,131.29,1.27999999]
[1764548243723,9.63390437,131.3,131.29,1.27999999]
[1764548244037,9.63390437,131.3,131.28,1.27999999]
[1764548244205,14.10390437,131.29,131.25,1.27999999]
[1764548244407,0.71,131.29,131.25,1.27999999]
[1764548244625,9.63390437,131.26,131.23,1.27999999]
[1764548244825,9.63390437,131.26,131.11,78.76]
[1764548244826,9.63390437,131.24,131.22,1.27999999]
[1764548245143,9.63390437,131.23,131.19,1.27999999]
[1764548245337,3.76,131.22,131.2,1.27999999]
[1764548245641,3.76,131.24,131.22,1.27999999]
[1764548246130,12.0499994,131.24,131.22,1.27999999]
[1764548246429,12.0499994,131.24,131.21,1.27999999]
[1764548246632,3.76,131.24,131.22,1.27999999]
[1764548246832,9.63390437,131.23,131.21,1.27999999]
[1764548247132,9.63390437,131.22,131.21,1.27999999]
[1764548247328,3.76,131.24,131.21,1.27999999]
[1764548247329,11.38007822,131.24,131.21,1.27999999]
[1764548247530,9.63390437,131.22,131.21,1.27999999]
[1764548248027,10.30390437,131.22,131.18,1.27999999]
[1764548248228,9.63390437,131.19,131.18,1.27999999]
[1764548248420,25.94276837,131.19,131.15,1.27999999]
[1764548248624,25.94276837,131.19,131.13,7.62544021]
[1764548248625,9.63390437,131.16,131.13,1.27999999]
[1764548248843,9.63390437,131.14,131.09,1.27999999]
[1764548249008,9.63390437,131.1,131.09,1.27999999]
[1764548249330,9.63390437,131.1,131.02,8.91240761]
[1764548249331,16.308864,131.07,131.02,8.91240761]
[1764548249531,9.63390437,131.03,131.02,8.91240761]
[1764548249732,9.63390437,131.03,131.02,8.91242252]
[1764548250029,0.67,131.11,131.06,1.27999999]
[1764548250212,0.67,131.11,131.02,27.42347885]
[1764548250213,3.76,131.1,131.07,1.27999999]
[1764548250417,3.76,131.13,131.11,1.27999999]
[1764548250632,3.76,131.13,131.12,1.27999999]
[1764548250926,9.63390437,131.24,131.12,1.27999999]
[1764548250927,3.76,131.16,131.12,1.27999999]
[1764548251130,9.63390437,131.13,131.12,1.27999999]
[1764548251316,3.76,131.15,131.14,1.27999999]
[1764548251517,13.39390437,131.15,131.14,1.27999999]
[1764548251734,13.39390437,131.15,131.12,1.27999999]
[1764548251930,9.63390437,131.13,131.12,1.27999999]
[1764548252310,9.63390437,131.24,131.13,1.27999999]
[1764548252518,3.76,131.21,131.18,1.27999999]
[1764548252814,3.76,131.21,131.2,1.27999999]
[1764548253019,13.39390437,131.21,131.2,1.27999999]
[1764548253216,13.39390437,131.21,131.19,1.27999999]
[1764548253416,9.63390437,131.2,131.16,1.27999999]
[1764548253636,9.63390437,131.17,131.16,1.27999999]
[1764548254230,0.68,131.2,131.16,1.27999999]
[1764548254439,0.68,131.2,131.17,1.27999999]
[1764548254822,16.308864,131.18,131.15,1.27999999]
[1764548255225,0.68,131.17,131.13,1.27999999]
[1764548255615,9.63390437,131.14,131.13,1.27999999]
[1764548255935,13.39390437,131.14,131.13,1.27999999]
[1764548256134,9.63390437,131.14,131.13,8.90601997]
[1764548256313,3.76,131.18,131.17,1.27999999]
[1764548256514,14.07390437,131.18,131.15,1.27999999]
[1764548256713,14.07390437,131.18,131.07,8.80994492]
[1764548256714,9.63390437,131.16,131.11,1.27999999]
[1764548256910,9.63390437,131.12,131.07,1.27999999]
[1764548257114,9.63390437,131.08,131.07,1.27999999]
[1764548257439,16.308864,131.15,131.04,0.72]
[1764548257440,16.308864,131.15,131.12,1.27999999]
[1764548257739,9.63390437,131.13,131.12,1.27999999]
[1764548258036,9.63390437,131.13,131.04,18.44384929]
[1764548258037,9.63390437,131.13,131.09,1.27999999]
[1764548258220,9.63390437,131.1,131.09,1.27999999]
[1764548258419,13.39390437,131.1,131.09,1.27999999]
[1764548259345,3.76,131.13,131.12,1.27999999]
[1764548259821,16.308864,131.16,131.13,1.27999999]
[1764548260023,0.68,131.19,131.14,1.27999999]
[1764548260233,3.76,131.15,131.14,1.27999999]
[1764548260623,13.39390437,131.15,131.14,1.27999999]
[1764548260818,14.07390437,131.15,131.14,1.27999999]
[1764548261128,13.39390437,131.15,131.13,1.27999999]
[1764548261336,9.63390437,131.14,131.13,1.27999999]
[1764548261818,10.31390437,131.14,131.11,1.27999999]
[1764548262025,9.63390437,131.12,131.11,1.27999999]
[1764548262233,9.63390437,131.12,131.1,1.27999999]
[1764548262444,0.68,131.14,131.1,1.27999999]
[1764548262445,9.63390437,131.11,131.1,1.27999999]
[1764548262937,16.308864,131.13,131.05,1.99999999]
[1764548263242,9.63390437,131.06,131.05,1.27999999]
[1764548263443,13.39390437,131.06,131.02,1.27999999]
[1764548263742,9.63390437,131.03,131.02,1.27999999]
[1764548263950,0.68,131.05,131.02,1.27999999]
[1764548264148,7.6309564,131.05,131.01,0.55999999]
[1764548264328,38.53561748,131.24,131.03,0.55999999]
[1764548264329,3.76,131.04,131.03,0.55999999]
[1764548264644,13.39390437,131.04,131.03,0.55999999]
[1764548264851,16.308864,131.01,130.98,0.1]
[1764548265043,9.63390437,130.99,130.98,0.1]
[1764548265564,16.308864,131.03,130.98,0.82]
[1764548265723,9.63390437,130.99,130.98,0.82]
[1764548265931,9.63390437,130.99,130.98,8.45425365]
[1764548266126,23.94042406,131.04,130.98,8.45425365]
[1764548266323,9.63390437,130.99,130.98,0.1]
[1764548266849,16.308864,130.95,130.88,7.64058679]
[1764548267023,9.74390437,130.99,130.89,0.72]
[1764548267024,0.11,130.99,130.89,0.72]
[1764548267224,16.308864,131.0,130.89,10.35390437]
[1764548267546,16.308864,131.0,130.89,0.72]
[1764548267547,9.63390437,130.91,130.89,0.72]
[1764548267849,64.8661895,131.04,130.89,0.72]
[1764548267850,16.308864,130.96,130.89,0.72]
[1764548268053,3.76,130.95,130.9,7.6394194]
[1764548268251,3.76,130.94,130.9,7.6394194]
[1764548268432,3.76,130.94,130.88,7.64049558]
[1764548268632,23.94488749,130.96,130.87,8.46114062]
[1764548268633,3.76,130.93,130.87,8.46114062]
[1764548268951,3.76,130.93,130.87,0.1]
[1764548269148,43.1446859,130.96,130.87,0.1]
[1764548269351,19.08657084,130.99,130.87,8.46117062]
[1764548269544,9.63390437,130.89,130.87,8.46117062]
[1764548269850,11.39475339,130.98,130.87,8.46117062]
[1764548269851,9.63390437,130.88,130.87,8.46117062]
[1764548270049,9.63390437,130.88,130.87,0.1]
[1764548270652,17.27449116,130.88,130.87,0.1]
[1764548270842,9.63390437,130.88,130.87,0.1]
[1764548271154,151.99999999,130.99,130.87,0.82]
[1764548271155,0.11,130.99,130.87,0.82]
[1764548271336,8.91994492,130.97,130.87,0.82]
[1764548271527,9.63390437,130.88,130.87,0.82]
[1764548271724,9.63390437,130.88,130.87,0.1]
[1764548272153,3.76,130.92,130.87,0.82]
[1764548272455,25.22880892,130.94,130.88,9.63390437]
[1764548272456,9.63390437,130.94,130.88,9.63390437]
[1764548272637,3.87,130.99,130.87,0.82]
[1764548272837,9.63390437,130.91,130.87,0.82]
[1764548273153,75.0,131.05,130.88,9.63390437]
[1764548273154,0.11,131.02,130.88,9.63390437]
[1764548273336,3.76,131.01,130.87,0.82]
[1764548273542,9.63390437,130.89,130.87,0.82]
[1764548273960,3.76,130.95,130.89,7.64000305]
[1764548274267,9.63390437,130.91,130.87,8.46113689]
[1764548274482,9.63390437,130.88,130.87,0.1]
[1764548274760,13.39390437,130.88,130.87,0.1]
[1764548275057,9.63390437,130.88,130.87,0.1]
[1764548276133,3.76,130.9,130.87,0.1]
[1764548276347,9.63390437,130.88,130.87,0.81]
[1764548276540,3.76,130.92,130.87,0.81]
[1764548276730,9.63390437,130.9,130.87,0.81]
[1764548277030,3.76,130.92,130.87,0.81]
[1764548277233,9.63390437,130.9,130.87,0.81]
[1764548277433,3.76,130.92,130.87,0.81]
[1764548277434,3.76,130.94,130.87,10.44390437]
[1764548277662,9.63390437,130.93,130.88,10.34390437]
[1764548277851,9.63390437,130.89,130.87,0.1]
[1764548278048,21.03449116,130.88,130.87,0.1]
[1764548278246,37.34335516,130.88,130.87,0.1]
[1764548279256,29.70276837,130.88,130.87,0.1]
[1764548279650,37.34335516,130.88,130.87,0.1]
[1764548280034,29.70276837,130.88,130.87,0.1]
[1764548280234,29.70276837,130.88,130.79,7.64573259]
[1764548280235,29.95443608,130.88,130.79,7.64573259]
[1764548280435,9.63390437,130.8,130.78,0.1]
[1764548280735,9.63390437,130.79,130.78,0.1]
[1764548281144,3.76,130.79,130.78,0.1]
[1764548281361,3.76,130.85,130.78,8.45632964]
[1764548281563,9.63390437,130.85,130.8,9.63390437]
[1764548281861,9.63390437,130.85,130.78,27.57240243]
[1764548281862,9.63390437,130.86,130.79,0.71]
[1764548282164,3.76,130.89,130.82,9.63390437]
[1764548282459,7.63921292,130.91,130.83,0.71]
[1764548282667,9.63390437,130.87,130.83,0.71]
[1764548282845,7.63575852,130.97,130.84,25.11880892]
[1764548283157,7.63575852,130.97,130.9,9.63390437]
[1764548283357,9.63390437,130.92,130.85,0.71]
[1764548283662,9.63390437,130.86,130.83,0.71]
[1764548283836,9.63390437,130.85,130.84,0.71]
[1764548284037,9.63390437,130.85,130.8,8.35525993]
[1764548284238,9.63390437,130.81,130.78,0.1]
[1764548284438,9.63390437,130.79,130.78,0.1]
[1764548284656,3.76,130.82,130.78,0.1]
[1764548284861,9.63390437,130.8,130.78,8.45621397]
[1764548285064,3.76,130.82,130.78,8.45621397]
[1764548285238,9.63390437,130.79,130.78,0.1]
[1764548285445,3.76,130.82,130.79,0.71]
[1764548285655,7.64160983,130.87,130.79,0.71]
[1764548285855,9.63390437,130.82,130.79,0.71]
[1764548286065,9.63390437,130.84,130.8,7.64525993]
[1764548286258,7.63825236,130.92,130.8,26.75840977]
[1764548286440,3.76,130.93,130.85,9.63390437]
[1764548286644,20.068864,130.93,130.81,0.71]
[1764548286840,9.63390437,130.9,130.85,9.63390437]
[1764548287044,9.63390437,130.92,130.86,9.63390437]
[1764548287265,9.63390437,130.91,130.87,0.71]
[1764548287453,9.63390437,130.91,130.83,0.71]
[1764548287454,9.63390437,130.88,130.83,0.71]
[1764548287651,9.63390437,130.84,130.83,0.71]
[1764548287988,9.63390437,130.84,130.8,27.46840977]
[1764548288144,9.63390437,130.84,130.81,0.71]
[1764548288345,3.76,130.87,130.81,0.71]
[1764548288561,27.71029384,130.87,130.78,26.8625019]
[1764548288766,9.63390437,130.83,130.79,0.71]
[1764548288977,9.63390437,130.8,130.79,0.71]
[1764548289151,9.63390437,130.8,130.78,0.1]
[1764548289472,22.20384929,130.79,130.78,0.1]
[1764548290047,1.99999999,130.84,130.78,0.1]
[1764548290048,19.10292656,130.87,130.78,0.1]
[1764548290255,18.44384929,130.79,130.78,0.1]
[1764548290769,9.63390437,130.79,130.78,0.1]
[1764548290953,25.94276837,130.79,130.78,0.1]
[1764548291272,38.49271329,130.79,130.78,0.1]
[1764548291471,16.308864,130.85,130.78,0.81]
[1764548291682,9.63390437,130.79,130.78,0.1]
[1764548291964,8.80994492,130.83,130.78,0.1]
[1764548292168,9.63390437,130.79,130.78,0.1]
[1764548292576,93.34,130.93,130.78,0.81]
[1764548292871,3.76,130.92,130.78,0.81]
[1764548293257,1.99999999,130.9,130.78,0.81]
[1764548293562,9.63390437,130.81,130.78,0.81]
[1764548293768,9.63390437,130.79,130.78,0.1]
[1764548294379,3.76,130.81,130.78,0.81]
[1764548294672,24.5661666,130.79,130.78,0.1]
[1764548294874,16.308864,130.79,130.78,0.1]
[1764548295080,33.37611152,130.79,130.78,1e-08]
[1764548295252,1.99999999,130.86,130.78,1e-08]
[1764548295452,33.37611152,130.79,130.78,1e-08]
[1764548295685,17.06724752,130.79,130.78,1e-08]
[1764548295971,20.80724752,130.79,130.78,1e-08]
[1764548296276,1.99999999,130.84,130.78,1e-08]
[1764548296573,1.32365581,159.43,130.78,1e-08]
[1764548296574,33.37611152,130.79,130.78,1e-08]
[1764548296890,33.37611152,130.79,130.76,0.1]
[1764548296891,8.80994492,130.78,130.76,0.1]
[1764548297092,37.11611152,130.77,130.76,0.1]
[1764548297254,28.85880892,130.77,130.76,0.1]
[1764548297450,7.64175454,130.86,130.76,0.81]
[1764548297759,16.5146052,130.77,130.76,0.1]
[1764548298062,16.5146052,130.77,130.76,1e-08]
[1764548298063,12.54994492,130.77,130.76,1e-08]
[1764548298270,20.19695876,130.77,130.76,1e-08]
[1764548299202,30.50454844,130.77,130.71,0.742336]
[1764548299477,33.37611152,130.72,130.71,0.742336]
[1764548299689,28.85880892,130.72,130.71,0.742336]
[1764548299854,37.11611152,130.72,130.71,0.742336]
[1764548300281,16.46046898,130.71,130.7,1e-08]
[1764548300481,16.46046898,130.71,130.62,0.1]
[1764548300482,8.80994492,130.67,130.62,0.1]
[1764548300681,24.71777158,130.71,130.62,0.1]
[1764548300682,26.77683421,130.71,130.63,0.71]
[1764548300853,21.12455685,130.79,130.63,0.71]
[1764548300854,26.7625019,130.78,130.65,8.2573026]
[1764548301056,8.2573026,130.67,130.66,0.71]
[1764548301269,8.2573026,130.67,130.63,0.71]
[1764548301470,8.2573026,130.64,130.63,0.71]
[1764548301672,25.11880892,130.68,130.63,0.71]
[1764548301673,16.308864,130.68,130.63,0.71]
[1764548301854,3.74,130.7,130.63,0.71]
[1764548302060,20.048864,130.69,130.63,0.71]
[1764548302257,19.11986189,130.76,130.64,26.79118187]
[1764548302563,8.2573026,130.65,130.63,0.71]
[1764548302757,8.2573026,130.67,130.63,8.36467724]
[1764548302952,8.2573026,130.68,130.63,27.50270066]
[1764548303152,8.2573026,130.73,130.64,0.71]
[1764548303361,3.74,130.75,130.64,2.70999999]
[1764548303656,8.2573026,130.72,130.64,0.71]
[1764548303855,8.80994492,130.74,130.67,8.2573026]
[1764548304055,113.21371258,130.85,130.65,0.71]
[1764548304056,3.74,130.79,130.65,0.71]
[1764548304271,8.2573026,130.7,130.66,7.6534517]
[1764548304479,3.74,130.72,130.66,7.6534517]
[1764548304784,8.2573026,130.7,130.67,0.67]
[1764548305161,3.74,130.72,130.67,0.67]
[1764548305370,8.2573026,130.69,130.67,0.67]
[1764548305578,8.2573026,130.7,130.67,0.67]
[1764548306073,8.2573026,130.71,130.67,0.67]
[1764548306279,8.2573026,130.69,130.68,7.65228037]
[1764548306654,8.2573026,130.71,130.68,8.33228037]
[1764548307962,0.71,130.79,130.7,8.2573026]
[1764548308282,11.38648378,130.78,130.68,26.78298131]
[1764548308486,28.85880892,130.77,130.68,26.78298131]
[1764548308659,8.2573026,130.72,130.68,26.78298131]
[1764548309068,8.2573026,130.75,130.68,26.78298131]
[1764548309270,8.2573026,130.8,130.74,8.2573026]
[1764548309477,0.71,130.85,130.77,8.2573026]
[1764548309675,4.45,130.9,130.81,8.2573026]
[1764548309877,8.2573026,130.84,130.75,16.308864]
[1764548310081,8.2573026,130.82,130.74,3.74]
[1764548310388,8.80994492,130.81,130.68,7.65228037]
[1764548310572,0.71,130.86,130.78,8.2573026]
[1764548310772,8.2573026,130.87,130.82,8.2573026]
[1764548311068,8.2573026,130.88,130.83,8.2573026]
[1764548311259,0.71,130.94,130.84,8.2573026]
[1764548311588,8.2573026,130.87,130.82,8.2573026]
[1764548311768,3.74,130.92,130.73,3.74]
[1764548311769,16.308864,130.88,130.73,3.74]
[1764548311973,16.308864,130.9,130.8,8.2573026]
[1764548312170,8.2573026,130.84,130.79,8.2573026]
[1764548312371,8.2573026,130.86,130.81,8.2573026]
[1764548312581,8.2573026,130.86,130.76,16.308864]
[1764548312771,8.80994492,130.87,130.79,8.2573026]
[1764548313099,8.2573026,130.82,130.77,8.2573026]
[1764548313259,17.06724752,130.85,130.75,18.30886399]
[1764548313460,8.2573026,130.82,130.74,7.64876854]